Workbook

Sheet START
B1: Over de sjabloon
B2: Maak een marketingbegrotingsplan en categoriediagram in deze werkmap.
B3: Voer categorieën, hoeveelheden en kosten in de tabel in op het werkblad Marketingbudgetplan. De kosten van het evenement en de geschatte totale marketingkosten worden automatisch berekend.
B4: Het geclusterde kolomdiagram wordt automatisch bijgewerkt in het werkblad van het categoriediagram.
B5: Opmerking:
B6: Kolom A in de werkbladen MARKETINGBUDGETPLAN en CATEGORIEDIAGRAM bevat aanvullende instructies. Deze tekst is opzettelijk verborgen. Als u tekst wilt verwijderen, selecteert u kolom A en selecteert u Delete. Als u tekst wilt weergeven/verbergen, selecteert u de tekstoptie Aanvullende instructies hieronder.
B7: Als u meer wilt weten over een tabel, drukt u in de tabel op Shift en F10 en selecteert u de optie Tabel en vervolgens Alternatieve tekst. Als u meer wilt weten over een draaitabel, drukt u in een tabel op Shift en F10 en selecteert u Opties voor draaitabel en vervolgens het tabblad Alternatieve tekst.

Sheet MARKETINGBUDGETPLAN
B2: MARKETINGBUDGETPLAN
E3: De slicer om de gegevenstabel te filteren op basis van de primaire categorie bevindt zich in deze cel.
B4: AANTAL DEELNEMERS | D4: 50
B5: KOSTEN VAN EVENEMENT | D5: =SUMIF(Gegevens[Primaire categorie],"Evenement",Gegevens[Geschat subtotaal]) -> € 2,500.00
B6: PRIJS per PERSOON voor het EVENEMENT | D6: =KostenVanEvenement/AantalDeelnemers -> € 50.00
B7: GESCHATTE EINDTOTAAL VOOR MARKETING | D7: =SUMIF(Gegevens[Primaire categorie],"<>Evenement",Gegevens[Geschat subtotaal]) -> € 45,743.00
B8: SUBTOTAAL | D8: =SUBTOTAL(109,Gegevens[Geschat subtotaal]) -> € 0.00
B10: Primaire categorie | C10: Secundaire categorie | D10: Geschatte hoeveelheid | E10: Geschatte kosten per eenheid | F10: Geschat subtotaal | G10: Aantekeningen
B11: Onderzoek | C11: Kosten onderzoeksbedrijf | D11: 2 | E11: € 2,300.00 | F11: =Gegevens[[#This Row],[Geschatte hoeveelheid]]*Gegevens[[#This Row],[Geschatte kosten per eenheid]] -> € 4,600.00
B12: Onderzoek | C12: Internetonderzoek | D12: 1 | E12: € 1,100.00 | F12: =Gegevens[[#This Row],[Geschatte hoeveelheid]]*Gegevens[[#This Row],[Geschatte kosten per eenheid]] -> € 1,100.00
B13: Onderzoek | C13: Onafhankelijk onderzoek | D13: 3 | E13: € 300.00 | F13: =Gegevens[[#This Row],[Geschatte hoeveelheid]]*Gegevens[[#This Row],[Geschatte kosten per eenheid]] -> € 900.00
B14: Onderzoek | C14: Overig onderzoek | D14: 2 | E14: € 250.00 | F14: =Gegevens[[#This Row],[Geschatte hoeveelheid]]*Gegevens[[#This Row],[Geschatte kosten per eenheid]] -> € 500.00
B15: Communicatie | C15: Reclamebrochures | D15: 5,000 | E15: € 0.15 | F15: =Gegevens[[#This Row],[Geschatte hoeveelheid]]*Gegevens[[#This Row],[Geschatte kosten per eenheid]] -> € 750.00
B16: Communicatie | C16: Televisie | D16: 5 | E16: € 4,000.00 | F16: =Gegevens[[#This Row],[Geschatte hoeveelheid]]*Gegevens[[#This Row],[Geschatte kosten per eenheid]] -> € 20,000.00
B17: Communicatie | C17: Radio | D17: 13 | E17: € 350.00 | F17: =Gegevens[[#This Row],[Geschatte hoeveelheid]]*Gegevens[[#This Row],[Geschatte kosten per eenheid]] -> € 4,550.00
B18: Communicatie | C18: Internet | D18: 1 | E18: € 350.00 | F18: =Gegevens[[#This Row],[Geschatte hoeveelheid]]*Gegevens[[#This Row],[Geschatte kosten per eenheid]] -> € 350.00
B19: Netwerken | C19: Netwerken | F19: =Gegevens[[#This Row],[Geschatte hoeveelheid]]*Gegevens[[#This Row],[Geschatte kosten per eenheid]] -> € 0.00
B20: Netwerken | C20: Lidmaatschappen | D20: 3 | E20: € 50.00 | F20: =Gegevens[[#This Row],[Geschatte hoeveelheid]]*Gegevens[[#This Row],[Geschatte kosten per eenheid]] -> € 150.00
B21: Netwerken | C21: Filialen | D21: 2 | E21: € 20.00 | F21: =Gegevens[[#This Row],[Geschatte hoeveelheid]]*Gegevens[[#This Row],[Geschatte kosten per eenheid]] -> € 40.00
B22: Netwerken | C22: Abonnementen | D22: 2 | E22: € 32.00 | F22: =Gegevens[[#This Row],[Geschatte hoeveelheid]]*Gegevens[[#This Row],[Geschatte kosten per eenheid]] -> € 64.00
B23: Evenement | C23: Aantal genodigden | D23: 50 | F23: =Gegevens[[#This Row],[Geschatte hoeveelheid]]*Gegevens[[#This Row],[Geschatte kosten per eenheid]] -> € 0.00
B24: Evenement | C24: Maaltijd (ontbijt, lunch of diner) | F24: =Gegevens[[#This Row],[Geschatte hoeveelheid]]*Gegevens[[#This Row],[Geschatte kosten per eenheid]] -> € 0.00
B25: Evenement | C25: Eten | E25: € 23.00 | F25: =Gegevens[[#This Row],[Geschatte hoeveelheid]]*Gegevens[[#This Row],[Geschatte kosten per eenheid]] -> € 0.00
B26: Evenement | C26: Belasting (10%) | E26: € 2.30 | F26: =Gegevens[[#This Row],[Geschatte hoeveelheid]]*Gegevens[[#This Row],[Geschatte kosten per eenheid]] -> € 0.00
B27: Evenement | C27: Fooi voor eten en drinken (20%) | E27: € 5.06 | F27: =Gegevens[[#This Row],[Geschatte hoeveelheid]]*Gegevens[[#This Row],[Geschatte kosten per eenheid]] -> € 0.00
B28: Evenement | C28: Valet-service | D28: 1 | E28: € 300.00 | F28: =Gegevens[[#This Row],[Geschatte hoeveelheid]]*Gegevens[[#This Row],[Geschatte kosten per eenheid]] -> € 300.00
B29: Evenement | C29: Entertainment #1 | D29: 1 | E29: € 800.00 | F29: =Gegevens[[#This Row],[Geschatte hoeveelheid]]*Gegevens[[#This Row],[Geschatte kosten per eenheid]] -> € 800.00
B30: Evenement | C30: Entertainment #2 | D30: 1 | E30: € 1,200.00 | F30: =Gegevens[[#This Row],[Geschatte hoeveelheid]]*Gegevens[[#This Row],[Geschatte kosten per eenheid]] -> € 1,200.00
B31: Evenement | C31: Overige services | D31: 1 | E31: € 200.00 | F31: =Gegevens[[#This Row],[Geschatte hoeveelheid]]*Gegevens[[#This Row],[Geschatte kosten per eenheid]] -> € 200.00
B32: Audio-visuele diensten | C32: Eenvoudig PA-systeem en podium | D32: 1 | E32: € 0.00 | F32: =Gegevens[[#This Row],[Geschatte hoeveelheid]]*Gegevens[[#This Row],[Geschatte kosten per eenheid]] -> € 0.00 | G32: Aanwezig op de locatie (meestal)
B33: Audio-visuele diensten | C33: Scherm | D33: 1 | E33: € 0.00 | F33: =Gegevens[[#This Row],[Geschatte hoeveelheid]]*Gegevens[[#This Row],[Geschatte kosten per eenheid]] -> € 0.00 | G33: Aanwezig op de locatie (meestal)
B34: Audio-visuele diensten | C34: Huur van XGA data-projector/beamer | D34: 1 | E34: € 45.00 | F34: =Gegevens[[#This Row],[Geschatte hoeveelheid]]*Gegevens[[#This Row],[Geschatte kosten per eenheid]] -> € 45.00
B35: Audio-visuele diensten | C35: Draadloze muis | D35: 1 | E35: € 12.00 | F35: =Gegevens[[#This Row],[Geschatte hoeveelheid]]*Gegevens[[#This Row],[Geschatte kosten per eenheid]] -> € 12.00
B36: Audio-visuele diensten | C36: Stekkerdozen | D36: 1 | E36: € 0.00 | F36: =Gegevens[[#This Row],[Geschatte hoeveelheid]]*Gegevens[[#This Row],[Geschatte kosten per eenheid]] -> € 0.00 | G36: Aanwezig op de locatie (meestal)
B37: Audio-visuele diensten | C37: Verlengsnoeren | D37: 1 | E37: € 0.00 | F37: =Gegevens[[#This Row],[Geschatte hoeveelheid]]*Gegevens[[#This Row],[Geschatte kosten per eenheid]] -> € 0.00 | G37: Aanwezig op de locatie (meestal)
B38: Audio-visuele diensten | C38: Reversmicrofoon | D38: 1 | E38: € 0.00 | F38: =Gegevens[[#This Row],[Geschatte hoeveelheid]]*Gegevens[[#This Row],[Geschatte kosten per eenheid]] -> € 0.00 | G38: Aanwezig op de locatie (meestal)
B39: Audio-visuele diensten | C39: Geluids- en beeldtechnici/arbeidskrachten | D39: 1 | E39: € 300.00 | F39: =Gegevens[[#This Row],[Geschatte hoeveelheid]]*Gegevens[[#This Row],[Geschatte kosten per eenheid]] -> € 300.00
B40: Audio-visuele diensten | C40: Belasting (8,8%) | E40: € 31.42 | F40: =Gegevens[[#This Row],[Geschatte hoeveelheid]]*Gegevens[[#This Row],[Geschatte kosten per eenheid]] -> € 0.00
B41: Extra kosten | C41: Uitnodiging (kosten voor afdrukken en verzenden) | E41: € 834.00 | F41: =Gegevens[[#This Row],[Geschatte hoeveelheid]]*Gegevens[[#This Row],[Geschatte kosten per eenheid]] -> € 0.00
B42: Extra kosten | C42: Tijd en onkosten (T&O) | E42: € 600.00 | F42: =Gegevens[[#This Row],[Geschatte hoeveelheid]]*Gegevens[[#This Row],[Geschatte kosten per eenheid]] -> € 0.00
B43: Extra kosten | C43: T&O voor bedrijfsmedewerkers | E43: € 200.00 | F43: =Gegevens[[#This Row],[Geschatte hoeveelheid]]*Gegevens[[#This Row],[Geschatte kosten per eenheid]] -> € 0.00 | G43: <Aantal personen aanwezig op de locatie>
B44: Extra kosten | C44: T&O voor getuigenissen van klanten | E44: € 100.00 | F44: =Gegevens[[#This Row],[Geschatte hoeveelheid]]*Gegevens[[#This Row],[Geschatte kosten per eenheid]] -> € 0.00
B45: Weggevertjes | C45: Weggevertje #1 | D45: 25 | E45: € 10.00 | F45: =Gegevens[[#This Row],[Geschatte hoeveelheid]]*Gegevens[[#This Row],[Geschatte kosten per eenheid]] -> € 250.00 | G45: <Beschrijving van giveaways>
B46: Weggevertjes | C46: Weggevertje #2 | D46: 25 | E46: € 5.00 | F46: =Gegevens[[#This Row],[Geschatte hoeveelheid]]*Gegevens[[#This Row],[Geschatte kosten per eenheid]] -> € 125.00 | G46: <Beschrijving van weggevertje>
B47: Promoties | C47: Productweggevertjes | D47: 50 | E47: € 8.00 | F47: =Gegevens[[#This Row],[Geschatte hoeveelheid]]*Gegevens[[#This Row],[Geschatte kosten per eenheid]] -> € 400.00
B48: Promoties | C48: Productkortingen | D48: 300 | E48: € 3.00 | F48: =Gegevens[[#This Row],[Geschatte hoeveelheid]]*Gegevens[[#This Row],[Geschatte kosten per eenheid]] -> € 900.00
B49: Promoties | C49: Speciale aanbiedingen | D49: 200 | E49: € 2.50 | F49: =Gegevens[[#This Row],[Geschatte hoeveelheid]]*Gegevens[[#This Row],[Geschatte kosten per eenheid]] -> € 500.00
B50: Reclame | C50: Brochures (ontwikkeling en productie) | D50: 5,000 | E50: € 0.15 | F50: =Gegevens[[#This Row],[Geschatte hoeveelheid]]*Gegevens[[#This Row],[Geschatte kosten per eenheid]] -> € 750.00
B51: Reclame | C51: Verzendlijsten | D51: 15,000 | E51: € 0.04 | F51: =Gegevens[[#This Row],[Geschatte hoeveelheid]]*Gegevens[[#This Row],[Geschatte kosten per eenheid]] -> € 600.00
B52: Reclame | C52: Briefkaarten | D52: 15,000 | E52: € 0.03 | F52: =Gegevens[[#This Row],[Geschatte hoeveelheid]]*Gegevens[[#This Row],[Geschatte kosten per eenheid]] -> € 450.00
B53: Reclame | C53: Televisie | D53: 2 | E53: € 600.00 | F53: =Gegevens[[#This Row],[Geschatte hoeveelheid]]*Gegevens[[#This Row],[Geschatte kosten per eenheid]] -> € 1,200.00
B54: Reclame | C54: Radio | D54: 4 | E54: € 300.00 | F54: =Gegevens[[#This Row],[Geschatte hoeveelheid]]*Gegevens[[#This Row],[Geschatte kosten per eenheid]] -> € 1,200.00
B55: Reclame | C55: Kranten | D55: 6 | E55: € 220.00 | F55: =Gegevens[[#This Row],[Geschatte hoeveelheid]]*Gegevens[[#This Row],[Geschatte kosten per eenheid]] -> € 1,320.00
B56: Reclame | C56: Billboards | D56: 2 | E56: € 556.00 | F56: =Gegevens[[#This Row],[Geschatte hoeveelheid]]*Gegevens[[#This Row],[Geschatte kosten per eenheid]] -> € 1,112.00
B57: Reclame | C57: Zijkanten van bussen | D57: 3 | E57: € 125.00 | F57: =Gegevens[[#This Row],[Geschatte hoeveelheid]]*Gegevens[[#This Row],[Geschatte kosten per eenheid]] -> € 375.00
B58: PR | C58: Liefdadigheidsevenementen | D58: 3 | E58: € 200.00 | F58: =Gegevens[[#This Row],[Geschatte hoeveelheid]]*Gegevens[[#This Row],[Geschatte kosten per eenheid]] -> € 600.00
B59: PR | C59: Reclame | D59: 4 | E59: € 200.00 | F59: =Gegevens[[#This Row],[Geschatte hoeveelheid]]*Gegevens[[#This Row],[Geschatte kosten per eenheid]] -> € 800.00
B60: PR | C60: Werknemerspromoties | D60: 6 | E60: € 200.00 | F60: =Gegevens[[#This Row],[Geschatte hoeveelheid]]*Gegevens[[#This Row],[Geschatte kosten per eenheid]] -> € 1,200.00
B61: PR | C61: Sponsoring | D61: 3 | E61: € 200.00 | F61: =Gegevens[[#This Row],[Geschatte hoeveelheid]]*Gegevens[[#This Row],[Geschatte kosten per eenheid]] -> € 600.00

Sheet CATEGORIEDIAGRAM
B2: MARKETINGBUDGETPLAN
C4: Primaire categorie
C5: Audio-visuele diensten | D5: Communicatie | E5: Evenement | F5: Extra kosten | G5: Netwerken | H5: Onderzoek | I5: PR | J5: Promoties | K5: Reclame | L5: Weggevertjes | M5: Grand Total
B6: Geschat subtotaal | C6: € 0.00 | D6: € 7,007.00 | E6: € 357.00 | F6: € 25,650.00 | G6: € 2,500.00 | H6: € 375.00 | I6: € 254.00 | J6: € 1,800.00 | K6: € 3,200.00 | L6: € 7,100.00 | M6: € 48,243.00
B8: Draaigrafiekkolom met primaire categorieën en de geschatte bijbehorende subtotalen bevindt zich in deze cel.
